Cogmind - Beta 12 @@@ ROGUE MODE // 2023.07.08 @ 16:41:47 Player: ZOT Result: Destroyed by Y-45 Defender with Heavy Assault Rifle Performance ------------- Evolutions (1) 500 Regions Visited (2) 400 Robots Destroyed (20) 100 Value Destroyed (347) 347 Prototype IDs (3) 60 Alien Tech Used (0) 0 Bonus (0) 0 TOTAL SCORE: 1407 Bonus ------- None Cogmind --------- Core Integrity 0/400 Matter 300/300 Energy 100/100 System Corruption 1% Temperature Cool (0) Movement Core (50) Location -9/Materials Parts ------- > --- POWER (1) -------- (None) > --- PROPULSION (4) --- (None) > --- UTILITY (2) ------ (None) > --- WEAPON (2) ------- (None) > --- INVENTORY (5) ---- Light Ion Engine Wheel Wheel Improved Terrain Scanner Peak State ------------ > --- POWER ------------ Light Ion Engine > --- PROPULSION ------- Aluminum Leg Aluminum Leg Wheel Wheel > --- UTILITY ---------- Small Storage Unit Seismic Detector > --- WEAPON ----------- Small Laser Small Laser > --- INVENTORY -------- Light Ion Engine Wheel Wheel Improved Terrain Scanner Beam Rifle Light Assault Rifle Mining Laser [Rating: 10] Favorites ----------- Power Light Ion Engine Engine Light Ion Engine Propulsion Aluminum Leg Leg Aluminum Leg Wheel Wheel Utility Small Storage Unit Device Seismic Detector Storage Small Storage Unit Weapon Small Laser Energy Gun Small Laser Ballistic Gun Light Assault Rifle Special Weapon Mining Laser Build | -11 -10 -9 ------- Run | Jun Mat Mat Slots Evolved 2 | . . 2 Power . | . . . Propulsion 2 | . . 2 Utility . | . . . Weapon . | . . . Parts Attached 20 | 7 2 11 Power 2 | 1 . 1 Engine 2 | 1 . 1 Core . | . . . Reactor . | . . . Propulsion 4 | 2 . 2 Treads . | . . . Leg 2 | 2 . . Wheel 2 | . . 2 Hover . | . . . Flight . | . . . Utility 2 | 2 . . Device 1 | 1 . . Storage 1 | 1 . . Processor . | . . . Hackware . | . . . Protection . | . . . Artifact . | . . . Weapon 12 | 2 2 8 Energy Gun 7 | 2 1 4 Energy Cannon . | . . . Ballistic Gun 1 | . . 1 Ballistic Cannon . | . . . Launcher . | . . . Special Weapon 4 | . 1 3 Impact Weapon . | . . . Slashing Weapon . | . . . Piercing Weapon . | . . . Special Melee Weapon . | . . . Unidentified Prototypes . | . . . Parts Lost 13 | . . 13 Power 2 | . . 2 Propulsion 4 | . . 4 Utility 2 | . . 2 Weapon 5 | . . 5 Highest Loss Streak 9 | . . 9 To Critical Strikes . | . . . Average Slot Usage (%) 88 | . 100 82 Engine 10 | . 14 9 Leg 22 | . 28 20 Wheel 9 | . . 14 Device 11 | . 14 10 Storage 11 | . 14 11 Energy Gun 18 | . 27 14 Special Weapon 1 | . 1 1 Naked Turns 1 | . . 1 Heaviest Build 15 | 11 11 15 Greatest Support 20 | 20 20 20 Greatest Overweight (x) 1 | . . 1 Average Overweight (x) . | . . . Largest Inventory Capacity 8 | 8 8 8 Average Capacity 7 | 7 8 7 Most Carried 8 | 8 8 7 Average Carried 6 | 5 7 5 Final Capacity 8 | 8 8 5 Final Carried 8 | 8 8 4 Class Distribution -------------------- 100% | Mutant Dominant Class ---------------- Mutant | -10/Materials Mutant | -9/Materials Resources | -11 -10 -9 ----------- Run | Jun Mat Mat Matter Collected 384 | 260 30 94 Remotely . | . . . Salvage Created 524 | 68 87 369 Parts 33 | 9 5 19 Haulers Intercepted 1 | . . 1 Recyclers Shooed . | . . . Parts Field Recycled . | . . . Retrieved Matter . | . . . Parts Self-Destructed . | . . . Prevented . | . . . Kills | -11 -10 -9 ------- Run | Jun Mat Mat Combat Hostiles Destroyed 13 | . 3 10 Guns 13 | . 3 10 Classes Destroyed 8 | 1 3 4 Tunneler 4 | 4 . . Hauler 1 | . . 1 Operator 1 | . 1 . Watcher 1 | . 1 . Swarmer 8 | . 3 5 Grunt 2 | . . 2 Duelist 1 | . . 1 Sentry 2 | . . 2 Best Kill Streak 4 | 3 3 4 Combat Bots Only 4 | . 3 4 Max Kills in Single Turn 2 | 2 2 2 Gunslinging 1 | . . 1 Exploded . | . . . Melee . | . . . Uniques/NPCs Destroyed . | . . . Combat | -11 -10 -9 -------- Run | Jun Mat Mat Damage Taken 1372 | . 111 1261 Core 447 | . 44 403 Absorbed by Shields . | . . . Core Remaining (%) 91 | 100 82 . Volleys Fired 68 | 6 13 49 Largest 2 | 2 2 2 Hottest 100 | 80 100 100 Shots Fired 107 | 12 24 71 Gun 96 | 12 22 62 Cannon . | . . . Launcher . | . . . Special 11 | . 2 9 Kinetic 1 | . . 1 Thermal 106 | 12 24 70 Explosive . | . . . Electromagnetic . | . . . Robot Hit Streak 10 | 4 3 10 Robot Miss Streak 3 | 1 3 3 Penetration Max . | . . . Secondary Targets 1 | . . 1 Max Gunslinging Chain 1 | . . 1 Shots Hit Robots 62 | 8 11 43 Core Hits 27 | 4 7 16 Critical Kills . | . . . Critical Parts Destroyed . | . . . Critical Strikes 2 | . . 2 Burn 2 | . . 2 Melee Attacks . | . . . Impact . | . . . Slashing . | . . . Piercing . | . . . Sneak Attacks . | . . . Combat Hostiles . | . . . Follow-up Attacks . | . . . Damage Inflicted 793 | 100 143 550 Guns 787 | 100 143 544 Cannons . | . . . Explosions . | . . . Melee . | . . . Ramming 6 | . . 6 Kinetic 7 | . . 7 Thermal 780 | 100 143 537 Explosive . | . . . Electromagnetic . | . . . Impact . | . . . Slashing . | . . . Piercing . | . . . Highest Corruption 1 | . . 1 Average Corruption 1 | . . 1 Corruption Purged . | . . . Corruption Blocked . | . . . Effects 1 | . . 1 Misfires 1 | . . 1 Overload Shots . | . . . Overflow Damage . | . . . Projectiles . | . . . Explosions . | . . . Melee . | . . . Knockbacks . | . . . Impact . | . . . Kinetic . | . . . Secondary . | . . . Self-Inflicted Damage 1 | . . 1 Shots . | . . . Rammed 3 | . . 3 Targets Rammed 4 | . . 4 Kicked 1 | . . 1 Crushed . | . . . Highest Temperature 253 | 72 90 253 Average Temperature 53 | 30 29 66 Received Heat Transfer 411 | . . 411 Siege Activations . | . . . Robots Corrupted . | . . . Combat Hostiles . | . . . Parts Fried . | . . . Impact Corruptions . | . . . Robots Melted . | . . . Combat Hostiles . | . . . Parts Melted 8 | . 1 7 Heat Transferred 1965 | 225 325 1415 Parts Sabotaged . | . . . Parts Stolen . | . . . Parts Stripped . | . . . Power Chain Reactions . | . . . Missiles Intercepted . | . . . Alert | -11 -10 -9 ------- Run | Jun Mat Mat Peak Influence 231 | 20 111 231 Initial 46 | . 13 46 Average 97 | 7 67 129 Maximum Alert Level 1 | . . 1 Low Security (%) 93 | 100 100 89 Level 1 6 | . . 10 Level 2 . | . . . Level 3 . | . . . Level 4 . | . . . Level 5 . | . . . High Security . | . . . Max Security . | . . . Squads Dispatched 1 | . . 1 Investigation 1 | . . 1 Extermination . | . . . Reinforcement . | . . . Assault . | . . . Garrison . | . . . Intercept . | . . . Searches Triggered . | . . . Construction Impeded . | . . . Haulers Reinforced . | . . . Active Scanning Responses . | . . . Cargo Convoy Interrupts . | . . . Stealth | -11 -10 -9 --------- Run | Jun Mat Mat Distress Signals . | . . . Communications Jammed . | . . . Distress Signals . | . . . Times Spotted 31 | . 5 26 Peak Tracking Total 11 | . 3 11 Tactical Retreats 3 | . . 3 Traps | -11 -10 -9 ------- Run | Jun Mat Mat Traps Triggered . | . . . Indirectly . | . . . Trap Hack Attempts . | . . . Triggered . | . . . Disarmed . | . . . Reprogrammed . | . . . Reused . | . . . Traps Extracted . | . . . Installed . | . . . Triggered . | . . . Machines | -11 -10 -9 ---------- Run | Jun Mat Mat Machines Disabled . | . . . Max in Single Turn . | . . . Machines Repaired . | . . . Machines Sabotaged . | . . . Overloaded Fab Kills . | . . . Hacking | -11 -10 -9 --------- Run | Jun Mat Mat Machines Accessed 4 | . 1 3 Terminals 4 | . 1 3 Fabricators . | . . . Repair Stations . | . . . Recycling Units . | . . . Scanalyzers . | . . . Garrison Access . | . . . Total Hacks 13 | . 3 10 Successful 2 | . 1 1 Failed 11 | . 2 9 Catastrophic 3 | . . 3 Database Lockouts . | . . . Manual 8 | . . 8 Terminals 13 | . 3 10 Fabricators . | . . . Repair Stations . | . . . Recycling Units . | . . . Scanalyzers . | . . . Garrison Access . | . . . Terminal Hacks 2 | . 1 1 Prototype ID Bank 1 | . 1 . Zone Layout 1 | . . 1 Fabricator Hacks . | . . . Repair Station Hacks . | . . . Recycling Unit Hacks . | . . . Scanalyzer . | . . . Garrison Access Hacks . | . . . Unauthorized Hacks . | . . . Terminals . | . . . Fabricators . | . . . Repair Stations . | . . . Recycling Units . | . . . Scanalyzers . | . . . Garrison Access . | . . . Data Cores Recovered 1 | . 1 . Used . | . . . Hacking Detections 4 | . 1 3 Full Trace Events 2 | . . 2 Feedback Events 1 | . . 1 Corruption 1 | . . 1 Feedback Blocked . | . . . Robot Schematics Acquired . | . . . Robots Built . | . . . Authchips . | . . . Time . | . . . Total Robot Build Rating . | . . . Part Schematics Acquired . | . . . Parts Built . | . . . Authchips . | . . . Time . | . . . Total Part Build Rating . | . . . Parts Repaired . | . . . Time . | . . . Parts Recycled . | . . . Recycled Matter . | . . . Retrieved Matter . | . . . Retrieved Components . | . . . Parts Scanalyzed . | . . . Part Schematics Acquired . | . . . Parts Damaged . | . . . Bothacking | -11 -10 -9 ------------ Run | Jun Mat Mat Used RIF Installer . | . . . Robots Hacked . | . . . Non-combat . | . . . Combat . | . . . Robot Hacks Applied . | . . . Relay Couplers Released . | . . . Fabnet Peak Effective % . | . . . Robots Rewired . | . . . Allies Hacked . | . . . Hacks Repelled . | . . . Allies | -11 -10 -9 -------- Run | Jun Mat Mat Total Allies . | . . . Largest Group . | . . . Highest-Rated Group . | . . . Highest-Rated Ally . | . . . Total Orders . | . . . Ally Attacks . | . . . Total Damage . | . . . Kills . | . . . Allies Corrupted . | . . . Allies Melted . | . . . Intel | -11 -10 -9 ------- Run | Jun Mat Mat Robot Analysis Total . | . . . Derelict Logs Recovered . | . . . Drone Launches . | . . . Drone Recoveries . | . . . Exploration | -11 -10 -9 ------------- Run | Jun Mat Mat Turns Passed 1013 | 123 283 607 Spaces Moved 618 | 72 198 348 Core 30 | 3 . 27 Treads . | . . . Legs 588 | 69 198 321 Wheels . | . . . Hover . | . . . Flight . | . . . Fastest Speed 50 | 50 120 50 Average Speed 118 | 117 120 118 Slowest Speed 120 | 120 120 120 Overloaded Moves . | . . . Propulsion Burnouts . | . . . Robots Hopped . | . . . Cave-ins Triggered . | . . . Exploration Rate (%) 20 | 5 26 31 Regions Visited 2 Branch Regions . Pre-discovered Areas . | . . . Known Exits Taken . | . . . Unknown Exits Taken 2 | 1 1 . Scrap Searched . | . . . Spaces Dug 11 | . 2 9 Terrain Destroyed 11 | . 2 9 Melee . | . . . Projectile 11 | . 2 9 AOE . | . . . Terrain Rammed . | . . . Walls Destroyed . | . . . Machines Disabled . | . . . Actions | -11 -10 -9 --------- Run | Jun Mat Mat Total 765 | 98 216 451 Wait 37 | . . 37 Move 616 | 71 197 348 Hop . | . . . Pick Up 18 | 14 2 2 Fast Attach 1 | 1 . . Attach 13 | 6 1 6 Detach . | . . . Swap 6 | . 1 5 Drop 2 | . 2 . Fire 68 | 6 13 49 Melee . | . . . Ram 3 | . . 3 Kick 1 | . . 1 Crush . | . . . Escape Stasis . | . . . Rewire . | . . . Trap . | . . . Miscellaneous . | . . . Route ------- -11/Junkyard -10/Materials -9/Materials (discovered 1 exit: [*Mat]) History --------- Turn | Location | Event 25 | -11/Junkyard | Discovered new exit (range 15) 124 | -11/Junkyard | Entered Materials 301 | -10/Materials | Build established: Mutant 334 | -10/Materials | Discovered new exit (range 4) 407 | -10/Materials | Entered another Materials area 407 | -9/Materials | Evolved 2 slots: Propulsion x2 705 | -9/Materials | Lost 4 parts (1p1n2w) 985 | -9/Materials | Core integrity fell below 50% 1004 | -9/Materials | Core integrity fell below 20% 1011 | -9/Materials | Discovered new exit (range 15) 1014 | -9/Materials | Destroyed by Y-45 Defender with Heavy Assault Rifle Last Messages --------------- 00979_ Beam Rifle destroyed. 00983_ Slammed into Y-45 Defender. 00984_ Acquired 9 matter. 00985_ Slammed into G-34 Mercenary. 00985_ Critical hit (Burn: +37). 00985_ Seismic Detector destroyed. 00986_ K-01 Serf cleans the Terminal. 00986_ Slammed into G-34 Mercenary. 00986_ Destabilizing: System interference. 00986_ Lgt. Assault Rifle temporarily disabled. 00989_ K-01 Serf destroyed. 00990_ K-01 Serf collects debris. 00993_ G-34 Mercenary destroyed. 00994_ K-01 Serf collects debris. 00996_ Lgt. Assault Rifle destroyed. 00997_ S-10 Pest suffers critical hit (Burn). 01005_ K-01 Serf collects debris. 01011_ EXIT=FOUND 01012_ K-01 Serf collects debris. 01013_ Sml. Storage Unit destroyed. Map ----- +----------------------------------------------------+ | + + """ | | ??###### ######### #### ############## ###### """ | | ??# + #???????# #??# #????# # ###### """ | | ??# # #???????# #??# #????# "T"%+%# " | | ??# # #???????# #??# #????# [ # ######] | | ??# # #???????#+##?# #????######### #????###### | | ??# # #????????? ###+#####?????####+####??????? | | ??# # #????????? # #?????# #??????? | | ??###### #???""""?? #""" #?????# """ #??????? | | ?????### ###?"""""? #""" #?????# """ #??????? | | ?????# # ?? #""" #?????# """ #??????? | | ?????# # """??? # #?????# #??????? | | ###### [T= + """"?? #########?????#########??????? | | %%% %[% # """"?? #??###########???????????????? | | ######[[!= # ? #??# #???????????????? | | ?????##%%[###########??# """ #???????????????? | | ####### = ## T #????# """ #???????????????? | | # ## ||#????# """ #???????????????? | | ]] + ## ||##???#""" #???????????????? | | [ ]] # ## ! #?????????????????????????????? | | ] # ## !#??????????????????????????????? | | ####### ## ????????????????????????????????? | | ?????# ###+#############+###########?????????? | | ?????# Y g Y #?????????? | | ?????# g s k < #?????????? | | ?????# k @ #?????????? | | ?????# ###### ###########???????????????? | | ?????#######????# #?????????????????????????? | | ????????????????#!!!!!!#?????????????????????????? | | ????????????????#!!!!!!#?????????????????????????? | | ????????????????########?????????????????????????? | | ?????????????????????????????????????????????????? | | | | | | | | | | | | | | | | | | | | | | | | | | | | | | | | | | | | | +----------------------------------------------------+ Best States ------------- Heat Dissipation 28 Energy Generation 10 Energy Capacity 250 Matter Stores 300 Matter Capacity 300 Sight Range 16 Terrain Scan Density 10 Evasion (%) 55 Item Schematics ----------------- None Robot Schematics ------------------ None Fabricated ------------ Nothing Alien Tech Used ----------------- None Achievements -------------- None Challenges ------------ None Game ------ Seed ThrowingDecoyMembrane Manual? 0 Play Time 00:17:55 Cumulative 42.3 hours Start 2023.07.08 @ 16:26:37 End 2023.07.08 @ 16:41:47 Sessions 1 Manual Loads 0 Difficulty Rogue Special Mode None Game No. 57 Rogue 57 Adventurer 0 Explorer 0 Win Type - Total 0 Types 0/0/0/0/0/0/0/0/0 Lore% 17 Gallery% 30 Achievement% 21 Wizard Run 0 Options --------- ASCII 0 Keyboard 0 Movement Mouse Keybinds 0 Fullscreen 1 Font 24/Smallcaps Map View 76x50 Tactical HUD 1 Map Filters NONE Filters NONE Steam 1 RUN: 65c06924-c958-467f-8afd-01f339e299dc